bitfinex/quotes_SOLUSD_20240816
["timestamp","ask_amount","ask_price","bid_price","bid_amount"]
[1723818765536,15.7527,139.21,139.14,45.0]
[1723818765718,6.0121,139.23,139.15,1.56184093]
[1723818765921,15.5085,139.25,139.15,8.74824093]
[1723818766122,15.5085,139.25,139.16,45.0]
[1723818766322,15.5085,139.25,139.17,1.43614451]
[1723818766521,15.5085,139.25,139.18,1.43623513]
[1723818767415,21.5402,139.37,139.19,0.12549]
[1723818767618,15.5085,139.34,139.2,7.1836]
[1723818767918,15.5085,139.34,139.21,0.25098]
[1723818768230,22.58424252,139.33,139.21,45.12549]
[1723818768811,20.0,139.32,139.21,45.12549]
[1723818771806,20.0,139.32,139.21,424.48863554]
[1723818772026,20.0,139.32,139.21,379.36314554]
[1723818772244,6.2792,139.31,139.17,379.36314554]
[1723818772435,65.0,139.3,139.17,379.36314554]
[1723818772636,15.7362,139.29,139.17,379.36314554]
[1723818772809,20.0,139.28,139.17,379.36314554]
[1723818773320,20.0,139.28,139.17,386.54844554]
[1723818773513,20.0,139.28,139.17,379.36314554]
[1723818775208,22.87742629,139.28,139.18,0.37647]
[1723818775515,22.87742629,139.28,139.18,0.25098]
[1723818775715,22.87742629,139.28,139.19,0.12549]
[1723818777023,22.87742629,139.28,139.2,0.12549]
[1723818777341,22.87742629,139.28,139.2,45.37647]
[1723818777838,15.7362,139.29,139.22,0.12549]
[1723818778038,15.7362,139.29,139.22,1.56053853]
[1723818778341,15.7362,139.29,139.22,46.56053853]
[1723818778771,9.18000653,139.31,139.23,0.12549]
[1723818779042,2.90080653,139.31,139.23,379.48863554]
[1723818779338,20.0,139.32,139.23,379.36314554]
[1723818779548,16.1247,139.3,139.15,410.70804554]
[1723818779835,20.0,139.29,139.15,379.36314554]
[1723818780039,30.0,139.23,139.15,379.36314554]
[1723818780236,15.7964,139.21,139.11,385.55634554]
[1723818780407,20.0,139.2,139.11,385.55634554]
[1723818781058,20.0,139.2,139.11,392.74474554]
[1723818781536,22.85166705,139.2,139.11,379.36314554]
[1723818782750,22.85166705,139.2,139.12,45.0]
[1723818783735,22.85166705,139.2,139.12,424.36314554]
[1723818785441,22.85166705,139.2,139.13,0.25098]
[1723818786060,22.85166705,139.2,139.13,0.12549]
[1723818786280,22.85166705,139.2,139.12,424.36314554]
[1723818786840,6.1242,139.19,139.12,379.36314554]
[1723818787039,20.0,139.18,139.12,379.36314554]
[1723818788165,20.0,139.2,139.12,379.36314554]
[1723818788372,20.0,139.2,139.13,45.0]
[1723818789460,20.0,139.2,139.12,379.36314554]
[1723818789866,20.0,139.2,139.13,0.12549]
[1723818790178,15.7964,139.21,139.14,7.1865]
[1723818790380,15.2872,139.34,139.17,7.1849]
[1723818790381,15.2336,139.25,139.17,7.1849]
[1723818790673,23.35588978,139.29,139.19,7.30979]
[1723818790974,16.0137,139.29,139.2,46.43574086]
[1723818791154,19.35001764,139.29,139.2,45.0]
[1723818791680,19.35001764,139.29,139.21,0.12549]
[1723818792277,20.0,139.28,139.2,45.0]
[1723818794151,20.0,139.28,139.19,379.36314554]
[1723818795342,20.0,139.28,139.19,386.54744554]
[1723818795768,20.0,139.28,139.2,45.25098]
[1723818796065,20.0,139.28,139.2,482.57292554]
[1723818796283,20.0,139.28,139.21,0.37647]
[1723818796443,16.0137,139.29,139.21,7.55967]
[1723818796647,16.0137,139.29,139.23,0.12549]
[1723818796851,16.205,139.33,139.23,0.25098]
[1723818797070,16.205,139.33,139.25,0.12549]
[1723818797378,16.205,139.33,139.25,431.79532554]
[1723818798079,15.5699,139.37,139.27,0.12549]
[1723818798278,15.5699,139.37,139.27,0.25098]
[1723818798584,15.5699,139.37,139.28,0.12549]
[1723818798766,15.5699,139.37,139.29,0.12549]
[1723818798970,15.5699,139.37,139.28,0.12549]
[1723818799478,15.5699,139.37,139.28,0.37647]
[1723818799674,20.0,139.36,139.28,0.37647]
[1723818799867,20.0,139.36,139.28,7.55607]
[1723818800090,15.5699,139.37,139.29,52.30429]
[1723818800303,3.3538877,139.39,139.31,7.30359]
[1723818800450,3.3538877,139.39,139.32,45.25098]
[1723818800657,20.05016139,139.41,139.32,45.25098]
[1723818800991,16.6545325,139.41,139.32,45.25098]
[1723818801163,0.8277325,139.41,139.33,6.22579]
[1723818801375,0.8277325,139.41,139.35,0.12549]
[1723818801568,0.8277325,139.41,139.35,386.66463554]
[1723818801764,0.8277325,139.41,139.37,7.30019]
[1723818801969,0.8277325,139.41,139.39,7.29949]
[1723818802185,0.8277325,139.41,139.4,7.55007]
[1723818802488,0.8277325,139.41,139.4,52.67556]
[1723818803183,8.16512039,139.54,139.46,386.53354554]
[1723818803184,0.8277325,139.54,139.46,386.53354554]
[1723818803375,0.8277325,139.54,139.47,45.25098]
[1723818803890,0.8277325,139.54,139.47,52.42098]
[1723818804192,0.8277325,139.54,139.49,0.12549]
[1723818804357,0.8277325,139.54,139.49,0.25098]
[1723818804757,0.8277325,139.54,139.49,45.25098]
[1723818805263,0.8277325,139.54,139.5,1.09456156]
[1723818806178,0.8277325,139.54,139.51,0.37647]
[1723818806491,0.8277325,139.54,139.51,52.66936]
[1723818806895,0.8277325,139.54,139.52,20.0]
[1723818807069,0.8277325,139.54,139.53,52.66886]
[1723818810361,0.8277325,139.68,139.59,7.28909]
[1723818810562,8.16200426,139.68,139.61,0.12549]
[1723818810757,0.8277325,139.68,139.61,0.12549]
[1723818811184,0.8277325,139.68,139.61,7.28819]
[1723818811391,0.8277325,139.68,139.62,0.25098]
[1723818811692,0.8277325,139.68,139.61,45.0]
[1723818812077,0.8277325,139.68,139.6,45.25098]
[1723818812588,0.8277325,139.68,139.59,386.65233554]
[1723818812589,0.8277325,139.68,139.59,379.36314554]
[1723818812962,0.8277325,139.68,139.55,20.0]
[1723818813163,0.8277325,139.68,139.55,27.1654]
[1723818813698,0.8277325,139.68,139.51,399.36314554]
[1723818813699,16.0133,139.67,139.51,379.36314554]
[1723818813993,6.0218,139.65,139.52,25.0848]
[1723818814196,20.0,139.64,139.49,17.9222]
[1723818814489,45.0,139.63,139.48,379.36314554]
[1723818814661,66.0133,139.62,139.48,379.36314554]
[1723818815279,45.0,139.61,139.48,379.36314554]
[1723818815488,20.0,139.6,139.48,379.36314554]
[1723818815696,30.0,139.59,139.48,379.36314554]
[1723818815995,20.0,139.58,139.48,379.36314554]
[1723818816392,20.0,139.58,139.48,386.53244554]
[1723818816595,20.0,139.58,139.49,7.1688]
[1723818816775,20.0,139.61,139.48,406.53244554]
[1723818817180,20.0,139.61,139.49,45.0]
[1723818817487,20.0,139.61,139.5,0.37647]
[1723818818293,20.0,139.61,139.51,0.12549]
[1723818818663,20.0,139.61,139.48,399.36314554]
[1723818819000,20.0,139.61,139.48,379.36314554]
[1723818819298,45.0,139.6,139.48,379.36314554]
[1723818819466,20.0,139.59,139.48,379.36314554]
[1723818819669,45.0,139.58,139.48,379.36314554]
[1723818819898,30.0,139.57,139.48,379.36314554]
[1723818820115,20.0,139.56,139.48,379.36314554]
[1723818820516,20.0,139.56,139.49,1.43304404]
[1723818820817,20.0,139.56,139.48,379.36314554]
[1723818820988,30.0,139.55,139.48,379.36314554]
[1723818821325,20.0,139.54,139.48,379.36314554]
[1723818821527,15.1833,139.53,139.48,379.36314554]
[1723818821682,20.0,139.52,139.48,379.30184554]
[1723818821883,20.0,139.52,139.38,637.10184554]
[1723818822108,20.0,139.52,139.38,379.30184554]
[1723818822415,30.0,139.5,139.38,379.30184554]
[1723818822621,20.0,139.49,139.38,379.30184554]
[1723818823605,20.0,139.52,139.38,379.30184554]
[1723818823792,45.0,139.51,139.38,379.30184554]
[1723818824186,20.0,139.5,139.38,379.30184554]
[1723818824910,20.0,139.52,139.38,379.30184554]
[1723818825221,20.0,139.52,139.39,7.174]
[1723818825389,20.0,139.52,139.41,0.12549]
[1723818825707,22.53861071,139.53,139.41,7.67496]
[1723818825885,22.53861071,139.53,139.42,45.0]
[1723818826085,22.53861071,139.53,139.43,0.25098]
[1723818826312,15.1833,139.53,139.43,0.12549]
[1723818826493,15.1833,139.53,139.42,45.0]
[1723818826697,15.1833,139.53,139.42,0.12549]
[1723818826898,15.1833,139.53,139.42,0.25098]
[1723818827410,15.1833,139.53,139.41,45.0]
[1723818827615,15.1833,139.53,139.4,45.12549]
[1723818827825,20.0,139.52,139.4,45.12549]
[1723818828404,20.0,139.52,139.4,52.29899]
[1723818828600,20.0,139.52,139.41,0.25098]
[1723818828795,15.1833,139.53,139.42,7.29759]
[1723818829095,15.1833,139.53,139.44,7.29699]
[1723818829304,15.1833,139.53,139.45,45.0]
[1723818830532,20.0,139.52,139.45,45.0]
[1723818833220,20.0,139.52,139.47,7.1696]
[1723818833404,20.0,139.52,139.48,45.0]
[1723818834009,20.0,139.52,139.47,45.0]
[1723818834924,20.0,139.52,139.48,0.12549]
[1723818835095,15.934,139.57,139.48,7.54537]
[1723818835300,15.934,139.57,139.49,45.0]
[1723818836003,15.934,139.57,139.5,0.37647]
[1723818836217,15.934,139.57,139.5,379.67831554]
[1723818836413,6.5997,139.59,139.51,45.0]
[1723818836623,16.3449,139.61,139.52,0.25098]
[1723818836934,16.3449,139.61,139.54,0.12549]
[1723818837117,16.3449,139.61,139.54,45.25098]
[1723818837430,16.3449,139.61,139.54,45.12549]
[1723818837615,16.3449,139.61,139.53,45.0]
[1723818838007,16.3449,139.61,139.51,379.30184554]
[1723818838201,20.0,139.6,139.51,379.30184554]
[1723818839511,20.0,139.6,139.52,45.0]
[1723818840230,20.0,139.6,139.52,424.30184554]
[1723818840622,20.0,139.6,139.52,379.30184554]
[1723818843923,16.3449,139.61,139.52,379.30184554]
[1723818844445,16.3449,139.61,139.53,45.25098]
[1723818845730,16.3449,139.61,139.54,0.12549]
[1723818845917,16.3449,139.61,139.55,0.12549]
[1723818846117,16.3449,139.61,139.55,379.55282554]
[1723818846318,6.5346,139.63,139.56,45.0]
[1723818846566,7.38016702,139.67,139.56,45.0]
[1723818846567,16.3362,139.65,139.57,7.28999]
[1723818846761,16.3362,139.65,139.58,45.0]
[1723818847346,16.3362,139.65,139.57,45.25098]
[1723818848058,16.3362,139.65,139.57,52.41578]
[1723818848550,16.3362,139.65,139.57,45.25098]
[1723818848753,20.0,139.63,139.57,52.41568]
[1723818848945,0.8277325,139.68,139.59,20.12549]
[1723818849143,0.8277325,139.68,139.61,20.12549]
[1723818849448,0.8277325,139.68,139.63,0.12549]
[1723818849668,0.8277325,139.68,139.64,369.30184554]
[1723818849844,0.8277325,139.68,139.65,20.12549]
[1723818850154,0.8277325,139.68,139.66,45.12549]
[1723818850367,0.8277325,139.68,139.66,45.0]
[1723818850528,0.8277325,139.68,139.65,45.12549]
[1723818850728,0.8277325,139.68,139.65,45.0]
[1723818851327,0.8277325,139.68,139.66,1.69329855]
[1723818851560,0.8277325,139.68,139.66,0.12549]
[1723818851733,0.8277325,139.68,139.67,0.12549]
[1723818852561,0.8277325,139.68,139.67,0.25098]
[1723818852724,0.8277325,139.68,139.67,45.25098]
[1723818852926,0.8277325,139.68,139.67,45.37647]
[1723818853127,0.8277325,139.68,139.67,0.37647]
[1723818853960,0.8277325,139.68,139.67,0.12549]
[1723818854258,0.8277325,139.68,139.66,0.12549]
[1723818854433,0.8277325,139.68,139.66,0.25098]
[1723818854628,0.8277325,139.68,139.67,20.0]
[1723818854841,0.8277325,139.68,139.67,20.25098]
[1723818855065,0.8277325,139.68,139.67,389.55282554]
[1723818855244,0.8277325,139.68,139.67,441.96350554]
[1723818855434,0.8277325,139.68,139.67,461.96350554]
[1723818855641,0.8277325,139.68,139.67,441.96350554]
[1723818855834,0.8277325,139.68,139.67,461.96350554]
[1723818856360,0.8277325,139.68,139.67,441.96350554]
[1723818856743,15.5599,139.79,139.71,20.0]
[1723818856956,15.5599,139.79,139.72,0.25098]
[1723818857166,15.5599,139.79,139.71,369.30184554]
[1723818857339,15.5599,139.79,139.72,0.50196]
[1723818858154,15.5599,139.79,139.71,369.30184554]
[1723818858338,20.0,139.78,139.71,369.30184554]
[1723818859227,20.0,139.78,139.72,0.12549]
[1723818859429,22.87650395,139.78,139.71,369.30184554]
[1723818859746,22.87650395,139.78,139.66,369.30184554]
[1723818859945,22.87650395,139.78,139.66,389.30184554]
[1723818860454,22.87650395,139.78,139.66,369.30184554]
[1723818860455,6.1132,139.77,139.66,369.30184554]
[1723818860651,30.0,139.72,139.66,369.30184554]
[1723818860830,30.0,139.72,139.63,257.8]
[1723818860831,15.5055,139.7,139.63,369.30184554]
[1723818861032,20.0,139.69,139.63,369.30184554]
[1723818861256,20.0,139.69,139.48,389.30184554]
[1723818861257,6.1132,139.68,139.48,389.30184554]
[1723818861459,65.0,139.67,139.48,17.9234]
[1723818861634,30.0,139.65,139.46,415.8581]
[1723818861831,45.0,139.64,139.46,415.8581]
[1723818862035,16.1943,139.63,139.48,20.0]
[1723818862261,20.0,139.62,139.48,20.0]
[1723818862468,20.0,139.62,139.42,47.172]
[1723818862760,75.0,139.61,139.44,20.0]
[1723818863063,20.0,139.6,139.43,17.929]
[1723818863268,45.0,139.59,139.43,17.929]
[1723818863484,6.3973,139.57,139.42,27.1721]
[1723818863635,20.0,139.56,139.42,27.1721]
[1723818863832,20.0,139.56,139.42,20.0]
[1723818864341,20.0,139.56,139.43,27.1716]
[1723818865070,20.0,139.56,139.46,20.0]
[1723818865274,6.3973,139.57,139.46,27.85887326]
[1723818865451,30.0,139.61,139.48,40.0]
[1723818865652,30.0,139.61,139.5,0.12549]
[1723818865851,30.0,139.61,139.5,0.37647]
[1723818866050,30.0,139.61,139.51,0.12549]
[1723818866349,30.0,139.61,139.5,45.0]
[1723818866559,30.0,139.61,139.41,40.0]
[1723818866560,7.39355974,139.6,139.41,40.0]
[1723818866763,7.39355974,139.6,139.42,17.9311]
[1723818867064,15.0397,139.58,139.41,27.1729]
[1723818867265,65.0,139.57,139.41,27.1729]
[1723818867477,65.0,139.57,139.39,37.9349]
[1723818867763,6.2673,139.56,139.38,20.0]
[1723818867973,15.0397,139.54,139.35,440.3391]
[1723818868139,65.0,139.53,139.35,447.515]
[1723818868549,65.0,139.53,139.36,7.1756]
[1723818868749,65.0,139.53,139.37,0.42093949]
[1723818869157,30.0,139.52,139.37,0.42093949]
[1723818869351,20.0,139.51,139.37,27.59593949]
[1723818869664,20.0,139.51,139.38,0.37647]
[1723818869834,20.0,139.51,139.38,45.50196]
[1723818870042,30.0,139.5,139.38,45.50196]
[1723818870274,15.0397,139.54,139.4,20.12549]
[1723818870571,15.0397,139.54,139.42,0.12549]
[1723818870947,15.0397,139.54,139.42,0.52945917]
[1723818871139,15.0397,139.54,139.43,0.25098]
[1723818871337,51.98,139.49,139.44,0.12549]
[1723818871544,51.98,139.49,139.45,7.171]
[1723818871767,51.98,139.49,139.46,45.12549]
[1723818871971,51.98,139.49,139.46,45.0]
[1723818872147,51.98,139.49,139.47,0.12549]
[1723818872354,51.98,139.49,139.47,0.25098]
[1723818872548,51.98,139.52,139.47,20.25098]
[1723818872777,51.98,139.52,139.49,0.12549]
[1723818872943,51.98,139.52,139.49,0.25098]
[1723818873276,51.98,139.58,139.49,0.12549]
[1723818873582,51.98,139.58,139.49,382.52549]
[1723818873786,51.98,139.58,139.49,382.4]
[1723818874571,20.0,139.57,139.49,382.4]
[1723818875858,20.0,139.57,139.5,45.0]
[1723818876864,20.0,139.57,139.49,382.4]
[1723818877377,20.0,139.57,139.49,381.4]
[1723818878653,45.0,139.56,139.49,381.4]
[1723818878862,20.0,139.55,139.42,381.4]
[1723818879059,45.0,139.54,139.42,381.4]
[1723818879376,20.0,139.53,139.43,47.1719]
[1723818879563,20.0,139.53,139.43,27.1719]
[1723818879758,20.0,139.57,139.44,0.12549]
[1723818880069,51.98,139.58,139.48,7.1691]
[1723818880273,51.98,139.58,139.49,45.0]
[1723818881246,51.98,139.58,139.5,0.12549]
[1723818881549,51.98,139.58,139.51,7.1677]
[1723818881752,15.5663,139.59,139.52,52.1673]
[1723818882069,15.5663,139.59,139.53,7.29199]
[1723818882380,16.4413,139.64,139.55,0.12549]
[1723818882678,16.4413,139.64,139.55,383.08322204]
[1723818882889,16.4413,139.64,139.55,400.99732204]
[1723818883056,16.4413,139.64,139.57,0.12549]
[1723818883475,16.4413,139.64,139.56,45.12549]
[1723818883675,16.4413,139.64,139.56,45.0]
[1723818884397,16.4413,139.64,139.55,381.4]
[1723818884554,65.0,139.63,139.55,381.4]
[1723818884959,20.0,139.63,139.55,381.4]
[1723818885175,45.0,139.62,139.55,381.4]
[1723818885381,20.0,139.61,139.55,381.4]
[1723818886257,20.0,139.63,139.55,381.4]
[1723818887991,20.0,139.63,139.56,45.0]
[1723818888185,20.0,139.63,139.56,426.4]
[1723818888358,19.34020317,139.64,139.56,426.4]
[1723818888790,19.34020317,139.64,139.56,381.4]
[1723818889480,45.0,139.63,139.56,381.4]
[1723818889655,51.98,139.57,139.56,381.4]
[1723818889855,51.98,139.57,139.49,387.8978]
[1723818889856,71.98,139.57,139.49,387.8978]
[1723818890107,20.0,139.56,139.49,387.8978]
[1723818890289,20.0,139.56,139.49,381.4]
[1723818891499,20.0,139.56,139.5,45.0]
[1723818891803,20.0,139.56,139.51,7.41878]
[1723818891956,20.0,139.56,139.52,45.0]
[1723818892781,20.0,139.56,139.49,381.4]
[1723818895228,20.0,139.56,139.5,45.0]
[1723818895588,2.83145976,139.6,139.51,0.25098]
[1723818895820,20.0,139.63,139.51,0.37647]
[1723818895985,20.0,139.63,139.51,381.4]
[1723818896185,20.0,139.63,139.52,45.0]
[1723818896587,20.0,139.63,139.51,381.4]
[1723818897117,20.0,139.63,139.51,353.33]
[1723818897418,67.183,139.62,139.51,353.33]
[1723818897715,20.0,139.61,139.51,353.33]
[1723818897918,45.0,139.6,139.51,353.33]
[1723818898100,20.0,139.59,139.51,353.33]
[1723818898303,30.0,139.55,139.51,353.33]
[1723818898496,20.0,139.54,139.45,359.708]
[1723818898697,20.0,139.54,139.46,0.12549]
[1723818899211,20.0,139.54,139.47,0.12549]
[1723818899413,20.0,139.54,139.47,0.25098]
[1723818899614,20.0,139.54,139.48,0.12549]
[1723818899921,20.0,139.54,139.48,45.12549]
[1723818900090,20.0,139.61,139.48,45.0]
[1723818900286,45.0,139.6,139.48,353.33]
[1723818900521,20.0,139.59,139.49,45.0]
[1723818900727,45.0,139.58,139.48,353.33]
[1723818900897,20.0,139.57,139.48,353.33]
[1723818901598,25.55443385,139.62,139.48,353.33]
[1723818901831,45.0,139.61,139.48,353.33]
[1723818902127,25.55443385,139.62,139.49,7.1685]
[1723818902324,25.55443385,139.62,139.49,0.12549]
[1723818902621,25.55443385,139.62,139.5,7.29389]
[1723818902794,25.55443385,139.62,139.51,45.0]
[1723818902994,20.0,139.61,139.51,45.0]
[1723818903196,20.0,139.61,139.48,353.33]
[1723818903507,20.0,139.61,139.49,45.0]
[1723818903689,20.0,139.61,139.48,353.33]
[1723818903889,6.6202,139.59,139.48,325.26]
[1723818904099,16.4092,139.57,139.48,325.26]
[1723818904301,65.0,139.56,139.48,325.26]
[1723818905518,20.0,139.56,139.48,325.26]
[1723818906609,20.0,139.56,139.49,45.0]
[1723818906812,16.4092,139.57,139.49,45.0]
[1723818907012,16.4092,139.57,139.49,52.1686]
[1723818907530,16.4092,139.57,139.49,45.0]
[1723818908230,45.0,139.56,139.48,325.26]
[1723818908439,16.4092,139.57,139.48,325.26]
[1723818908608,6.1674,139.55,139.42,325.26]
[1723818908808,15.8572,139.53,139.42,343.1913]
[1723818909431,20.0,139.52,139.42,343.1913]
[1723818909606,20.0,139.52,139.42,350.3638]
[1723818909932,20.0,139.52,139.42,343.1913]
[1723818910247,20.0,139.52,139.42,350.3637]
[1723818910908,20.0,139.52,139.45,0.12549]
[1723818911326,20.0,139.52,139.43,0.12549]
[1723818911514,20.0,139.52,139.43,45.12549]
[1723818911711,20.0,139.52,139.43,45.0]
[1723818911916,20.0,139.52,139.43,371.68634257]
[1723818912223,20.0,139.52,139.43,370.26]
[1723818912532,20.0,139.52,139.43,388.1893]
[1723818912748,20.0,139.52,139.43,388.31479]
[1723818912904,20.0,139.52,139.43,370.26]
[1723818913250,20.0,139.52,139.45,7.1705]
[1723818913399,20.0,139.52,139.44,25.0996]
[1723818913608,15.8572,139.53,139.44,25.0996]
[1723818913913,15.8572,139.53,139.43,325.26]
[1723818914106,15.8572,139.53,139.43,332.432]
[1723818914417,15.8572,139.53,139.43,325.26]
[1723818914809,45.0,139.52,139.43,325.26]
[1723818915019,20.0,139.51,139.43,325.26]
[1723818915443,15.8572,139.53,139.44,7.1714]
[1723818916444,15.8572,139.53,139.43,325.26]
[1723818916808,65.0,139.52,139.43,325.26]
[1723818917317,65.0,139.52,139.43,311.22]
[1723818917516,65.0,139.52,139.43,283.14]
[1723818917724,15.8172,139.5,139.37,283.14]
[1723818918038,6.5673,139.51,139.34,0.8277325]
[1723818918039,6.5673,139.46,139.34,0.8277325]
[1723818918238,35.7397,139.45,139.34,0.8277325]
[1723818918448,15.7397,139.43,139.34,0.8277325]
[1723818918605,20.0,139.42,139.34,0.8277325]
[1723818918809,22.2872,139.4,139.34,0.8277325]
[1723818919043,65.0,139.39,139.34,0.8277325]
[1723818919356,20.0,139.39,139.34,0.8277325]
[1723818922645,30.0,139.38,139.34,0.8277325]
[1723818923016,15.9961,139.4,139.34,0.8277325]
[1723818923353,3.38675296,139.42,139.34,45.8277325]
[1723818923647,22.2618,139.44,139.34,70.9456325]
[1723818923965,22.2618,139.44,139.34,255.8877325]
[1723818924124,25.60070884,139.44,139.34,255.8877325]
[1723818925160,65.0,139.43,139.34,255.8877325]
[1723818928249,7.35780598,139.42,139.34,255.8877325]
[1723818928454,65.0,139.41,139.34,255.8877325]
[1723818929836,65.0,139.41,139.34,0.8277325]
[1723818930045,20.0,139.41,139.34,0.8277325]
[1723818932248,45.0,139.4,139.34,0.8277325]
[1723818932440,20.0,139.39,139.34,0.8277325]
[1723818932894,7.35780598,139.42,139.34,0.8277325]
[1723818933104,25.60070884,139.44,139.34,0.8277325]
[1723818933260,32.9563652,139.44,139.34,0.8277325]
[1723818933595,32.9563652,139.44,139.35,1.43238784]
[1723818933800,26.4940652,139.44,139.34,7.4545325]
[1723818933960,3.33890884,139.44,139.36,1.43177116]
[1723818934165,7.36026012,139.47,139.35,52.1757]
[1723818934382,7.36026012,139.47,139.35,307.2357]
[1723818934570,14.53756012,139.47,139.35,307.2357]
[1723818934795,7.36026012,139.47,139.38,7.1745]
[1723818935092,19.83526066,139.48,139.39,45.0]
[1723818935298,19.83526066,139.48,139.39,46.43408229]
[1723818935586,16.4044,139.48,139.37,17.9371]
[1723818935786,16.4044,139.48,139.38,45.0]
[1723818936367,16.4044,139.48,139.36,7.1755]
[1723818936563,16.4044,139.48,139.35,255.06]
[1723818936564,45.0,139.47,139.35,255.06]
[1723818937294,20.0,139.46,139.35,255.06]
[1723818937470,45.0,139.45,139.35,255.06]
[1723818937800,20.0,139.44,139.35,255.06]
[1723818938298,45.0,139.43,139.35,255.06]
[1723818938460,20.0,139.42,139.34,7.4545325]
[1723818939707,20.0,139.47,139.34,14.6311325]
[1723818939884,45.0,139.46,139.34,14.6311325]
[1723818940063,20.0,139.45,139.34,7.4545325]
[1723818940260,45.0,139.44,139.34,7.4545325]
[1723818940499,20.0,139.43,139.34,7.4545325]
[1723818940869,45.0,139.42,139.34,0.8277325]
[1723818941072,20.0,139.41,139.34,0.8277325]
[1723818941892,16.0796,139.4,139.34,0.8277325]
[1723818942070,20.0,139.39,139.34,0.8277325]
[1723818943214,2.82134009,139.41,139.34,0.8277325]
[1723818943215,22.82134009,139.41,139.34,0.8277325]
[1723818943400,23.1234,139.48,139.38,7.1742]
[1723818943576,23.1234,139.48,139.36,25.1133]
[1723818944113,23.1234,139.48,139.36,17.9381]
[1723818944271,23.1234,139.48,139.36,25.1137]
[1723818944797,23.1234,139.48,139.37,45.0]
[1723818945699,25.9434809,139.48,139.37,45.0]
[1723818945897,45.0,139.47,139.37,45.0]
[1723818946472,45.0,139.47,139.37,52.1746]
[1723818947001,45.0,139.47,139.37,53.00629047]
[1723818947304,45.0,139.47,139.37,52.1746]
[1723818947604,45.0,139.47,139.37,307.2346]
[1723818948193,20.0,139.46,139.37,300.06]
[1723818948402,20.0,139.46,139.37,255.06]
[1723818948584,45.0,139.45,139.37,255.06]
[1723818948907,20.0,139.44,139.37,255.06]
[1723818949677,20.0,139.46,139.37,262.235]
[1723818949875,20.0,139.47,139.37,262.235]
[1723818950303,20.0,139.47,139.39,6.395]
[1723818950971,20.0,139.47,139.37,255.06]
[1723818951177,6.4897,139.46,139.32,6.6467]
[1723818951479,20.0,139.45,139.32,6.6467]
[1723818951674,45.0,139.44,139.32,6.6467]
[1723818951900,20.0,139.43,139.32,6.6467]
[1723818952199,45.0,139.42,139.32,6.6467]
[1723818952400,20.0,139.41,139.32,6.6467]
[1723818952611,45.0,139.4,139.32,6.6467]
[1723818952787,20.0,139.39,139.32,6.6467]
[1723818952985,20.0,139.41,139.32,6.6467]
[1723818953190,20.0,139.41,139.33,7.177]
[1723818953401,3.3442095,139.43,139.33,7.177]
[1723818953579,45.0,139.44,139.33,7.177]
[1723818953779,20.0,139.43,139.34,45.8277325]
[1723818954387,23.34972308,139.45,139.34,63.7685325]
[1723818954589,3.34972308,139.45,139.36,17.9384]
[1723818954790,15.9585,139.52,139.37,53.85922995]
[1723818955109,7.35896677,139.51,139.39,7.174]
[1723818955308,7.35896677,139.51,139.4,1.43304148]
[1723818955503,7.35896677,139.51,139.39,7.174]
[1723818955678,7.35896677,139.51,139.38,26.54364148]